Workbook

Sheet Sheet1
A1: 1 | B1: Breakfast | C1: Breakfast Ingredients | D1: Duration (min) | E1: Weight | F1: Probability | G1: Low | H1: Up | I1: Random Number | K1: Breakfast | L1: Breakfast Ingredients | N1: Snack | O1: Snack Ingredients | P1: Duration (min) | Q1: Weight | R1: Probability | S1: Low | T1: Up | U1: Random Number | W1: Snack | X1: Snack Ingredients | Z1: Lunch | AA1: Lunch Ingredients | AB1: Duration (min) | AC1: Weight | AD1: Probability | AE1: Low | AF1: Up | AG1: Random Number | AI1: Lunch | AJ1: Lunch Ingredients | AL1: Dinner | AM1: Dinner Ingredients | AN1: Duration (min) | AO1: Weight | AP1: Probability | AQ1: Low | AR1: Up | AS1: Random Number | AU1: Dinner | AV1: Dinner Ingredients | BT1: Frequencies | CI1: Possible combinations
A2: 1 | B2: bagel w smoked salmon | C2: bagel, smoked salmon, cream cheese, onion | D2: 5 | E2: 1 | F2: =E2/SUM($E:$E) -> 0.04166666667 | G2: 0 | H2: =F2 -> 0.04166666667 | I2: =RAND() -> 0.4896075695 | K2: =LOOKUP(I2,$G:$H,$B:$B) -> fruit smoothie | L2: =LOOKUP(K2,$B:$B,$C:$C) -> strawberries, blueberries, banana, milk | N2: almonds | O2: almonds | P2: 1 | Q2: 1 | R2: =Q2/SUM($Q:$Q) -> 0.01851851852 | S2: 0 | T2: =S2+R2 -> 0.01851851852 | U2: =RAND() -> 0.6602799871 | W2: =LOOKUP(U2,$S:$T,$N:$N) -> peanuts | X2: =LOOKUP(W2,$N:$N,$O:$O) -> peanuts | Z2: apple cheese salad | AA2: apple, cheese, lettuce, dressing | AB2: 10 | AC2: 1 | AD2: =AC2/SUM($AC:$AC) -> 0.03125 | AE2: 0 | AF2: =AD2 -> 0.03125 | AG2: =RAND() -> 0.2968412026 | AI2: =LOOKUP(AG2,$AE:$AF,$Z:$Z) -> chicken avocado sandwich | AJ2: =LOOKUP(AI2,$Z:$Z,$AA:$AA) -> chicken breast, avocado, mayonnaise, lettuce, bread, | AL2: baked penne | AM2: penne pasta, tomato sauce, cheese | AN2: 50 | AO2: 1 | AP2: =AO2/SUM($AO:$AO) -> 0.01886792453 | AQ2: 0 | AR2: =AQ2+AP2 -> 0.01886792453 | AS2: =RAND() -> 0.3029089367 | AU2: =LOOKUP(AS2,$AQ:$AR,$AL:$AL) -> game hens with apple salad | AV2: =LOOKUP(AU2,$AL:$AL,$AM:$AM) -> game hen, marinade (italian salad dressing), spinach, apples | BC2: WEEK 1 | BD2: Breakfast | BE2: Snack 1 | BF2: Lunch | BG2: Snack 2 | BH2: Dinner | BL2: Shopping List | BN2: Breakfast | BO2: Snack 1 | BP2: Lunch | BQ2: Snack 2 | BR2: Dinner | BT2: Breakfast | BU2: Snack 1 | BV2: Lunch | BW2: Snack 2 | BX2: Dinner | BZ2: Breakfast dup check | CA2: Lunch dup check | CB2: Dinner dup check | CD2: Snacks same for any day check | CF2: French toast check | CI2: Breakfast | CJ2: Snack 1 | CK2: Lunch | CL2: Snack 2 | CM2: Dinner
A3: 1 | B3: banana w peanut butter | C3: banana, peanut butter | D3: 2 | E3: 1 | F3: 0.04166666667 | G3: =H2 -> 0.04166666667 | H3: =G3+F3 -> 0.08333333333 | I3: 0.5478350601 | K3: ham and egg breakfast taco | L3: =LOOKUP(K3,$B:$B,$C:$C) -> tortilla, ham, egg | N3: ants on a log | O3: celery, peanut butter, raisins | P3: 10 | Q3: 1 | R3: 0.01851851852 | S3: =T2 -> 0.01851851852 | T3: =S3+R3 -> 0.03703703704 | U3: 0.8348072868 | W3: sardines | X3: can of sardines | Z3: bagel sandwich | AA3: bagel, cream cheese, turkey | AB3: 10 | AC3: 1 | AD3: 0.03125 | AE3: =AF2 -> 0.03125 | AF3: =AE3+AD3 -> 0.0625 | AG3: 0.9388478274 | AI3: turkey chili | AJ3: =LOOKUP(AI3,$Z:$Z,$AA:$AA) -> ground turkey, onion, canned tomatoes, garlic, paprika, cumin | AL3: baked ziti | AM3: ziti pasta, tomato sauce, cheese | AN3: 50 | AO3: 1 | AP3: =AO3/SUM($AO:$AO) -> 0.01886792453 | AQ3: =AR2 -> 0.01886792453 | AR3: =AQ3+AP3 -> 0.03773584906 | AS3: =RAND() -> 0.1520011122 | AU3: chicken w apple butter, white rice | AV3: chicken tenderloin, apple butter, rice | BC3: Monday | BD3: =K2 -> fruit smoothie | BE3: =W2 -> peanuts | BF3: =AI2 -> chicken avocado sandwich | BG3: =W16 -> peanut butter and jelly sandwich | BH3: =AU2 -> game hens with apple salad | BN3: =BD3 -> fruit smoothie | BO3: =BE3 -> peanuts | BP3: chicken avocado sandwich | BQ3: =BG3 -> peanut butter and jelly sandwich | BR3: =BH3 -> game hens with apple salad | BT3: =COUNTIF($BN$3:$BN$16,BN3) -> 2 | BU3: =COUNTIF($BO$3:$BO$16,BO3) -> 1 | BV3: =COUNTIF($BP$3:$BP$16,BP3) -> 3 | BW3: =COUNTIF($BQ$3:$BQ$16,BQ3) -> 1 | BX3: =COUNTIF($BR$3:$BR$16,BR3) -> 1 | CD3: =IF(BO3=BQ3,1,0) -> 0 | CF3: =IF(BN3="french toast",1,0) -> 0 | CI3: =COUNTA(B:B) -> 25 | CJ3: =COUNTA(N:N) -> 55 | CK3: =COUNTA(Z:Z) -> 33 | CL3: =COUNTA(N:N) -> 55 | CM3: =COUNTA(AL:AL) -> 54 | CN3: =CI3*CJ3*CK3*CL3*CM3 -> 134763750 | CO3: day
A4: 1 | B4: Cheerios | C4: Cheerios, milk | D4: 3 | E4: 1 | F4: 0.04166666667 | G4: 0.08333333333 | H4: 0.125 | I4: 0.2469902775 | K4: cottage cheese w honey | L4: cottage cheese, honey | N4: apple | O4: apple | P4: 1 | Q4: 1 | R4: 0.01851851852 | S4: =T3 -> 0.03703703704 | T4: =S4+R4 -> 0.05555555556 | U4: 0.5202006413 | W4: kiwi | X4: kiwi | Z4: baked potato | AA4: potato, cheese, sour cream, chives, bacon | AB4: 10 | AC4: 1 | AD4: 0.03125 | AE4: =AF3 -> 0.0625 | AF4: =AE4+AD4 -> 0.09375 | AG4: 0.2966754563 | AI4: chicken avocado sandwich | AJ4: chicken breast, avocado, mayonnaise, lettuce, bread, | AL4: barbeque chicken | AM4: chicken breast/tenderloins, bbq sauce | AN4: 15 | AO4: 1 | AP4: 0.01886792453 | AQ4: =AR3 -> 0.03773584906 | AR4: =AQ4+AP4 -> 0.05660377358 | AS4: 0.117615068 | AU4: chicken quesadilla | AV4: chicken, tortilla, cheese, cream cheese | BC4: Tuesday | BD4: =K3 -> ham and egg breakfast taco | BE4: =W3 -> sardines | BF4: =AI3 -> turkey chili | BG4: =W17 -> prunes | BH4: =AU3 -> chicken w apple butter, white rice | BN4: =BD4 -> ham and egg breakfast taco | BO4: =BE4 -> sardines | BP4: =BF4 -> turkey chili | BQ4: =BG4 -> prunes | BR4: =BH4 -> chicken w apple butter, white rice | BT4: =COUNTIF($BN$3:$BN$16,BN4) -> 1 | BU4: =COUNTIF($BO$3:$BO$16,BO4) -> 2 | BV4: =COUNTIF($BP$3:$BP$16,BP4) -> 1 | BW4: =COUNTIF($BQ$3:$BQ$16,BQ4) -> 1 | BX4: =COUNTIF($BR$3:$BR$16,BR4) -> 1 | BZ4: =IF(BN4=BN3,1,0) -> 0 | CA4: =IF(BP4=BP3,1,0) -> 0 | CB4: =IF(BR4=BR3,1,0) -> 0 | CD4: =IF(BO4=BQ4,1,0) -> 0 | CF4: =IF(BN4="french toast",1,0) -> 0 | CN4: =CN3*7 -> 943346250 | CO4: week
A5: 1 | B5: chorizo and egg breakfast taco | C5: tortilla, chorizo, egg | D5: 8 | E5: 1 | F5: 0.04166666667 | G5: 0.125 | H5: 0.1666666667 | I5: 0.8084674109 | K5: scrambled eggs | L5: eggs, cheese, salt/pepper | N5: Babybel cheese | O5: Babybel cheeses | P5: 1 | Q5: 1 | R5: 0.01851851852 | S5: 0.05555555556 | T5: 0.07407407407 | U5: 0.3060951422 | W5: cottage cheese | X5: cottage cheese | Z5: beef and swiss wrap | AA5: wrap, cheese slices, roast beef slices, spinach | AB5: 10 | AC5: 1 | AD5: 0.03125 | AE5: 0.09375 | AF5: 0.125 | AG5: 0.1168838768 | AI5: beef and swiss wrap | AJ5: wrap, cheese slices, roast beef slices, spinach | AL5: bistec encebollada | AM5: steak, onion, oil | AN5: 150 | AO5: 1 | AP5: 0.01886792453 | AQ5: 0.05660377358 | AR5: 0.07547169811 | AS5: 0.3800996943 | AU5: grilled steak | AV5: steak, butter | BC5: Wednesday | BD5: cottage cheese w honey | BE5: kiwi | BF5: chicken avocado sandwich | BG5: Fig Newtons | BH5: chicken quesadilla | BN5: cottage cheese w honey | BO5: kiwi | BP5: chicken avocado sandwich | BQ5: Fig Newtons | BR5: chicken quesadilla | BT5: 1 | BU5: 1 | BV5: 3 | BW5: 1 | BX5: 1 | BZ5: =IF(BN5=BN4,1,0) -> 0 | CA5: =IF(BP5=BP4,1,0) -> 0 | CB5: =IF(BR5=BR4,1,0) -> 0 | CD5: 0 | CF5: 0 | CN5: =CN3*14 -> 1886692500 | CO5: 2 weeks
A6: 1 | B6: cinnamon raisin bread | C6: bread, raisins, cinnamon, apple butter | D6: 3 | E6: 1 | F6: 0.04166666667 | G6: 0.1666666667 | H6: =G6+F6 -> 0.2083333333 | I6: 0.2972598944 | K6: croissant | L6: croissant, butter | N6: bag of chips | O6: bag of chips | P6: 1 | Q6: 1 | R6: 0.01851851852 | S6: 0.07407407407 | T6: 0.09259259259 | U6: 0.5676219396 | W6: macadamia nuts | X6: macadamia nuts | Z6: beef nachos | AA6: tortilla chips, ground beef, cheese, salsa | AB6: 15 | AC6: 1 | AD6: 0.03125 | AE6: 0.125 | AF6: 0.15625 | AG6: 0.9908342439 | AI6: updated peanut butter sandwich | AJ6: bread, peanut butter, applesauce | AL6: cheese ravioli soup | AM6: ravioli, cheese, cream of onion soup | AN6: 25 | AO6: 1 | AP6: 0.01886792453 | AQ6: 0.07547169811 | AR6: 0.09433962264 | AS6: 0.5740800399 | AU6: lasagna w beef | AV6: lasagna, ground beef, tomato sauce | BC6: Thursday | BD6: scrambled eggs | BE6: cottage cheese | BF6: beef and swiss wrap | BG6: sardines | BH6: grilled steak | BN6: scrambled eggs | BO6: cottage cheese | BP6: beef and swiss wrap | BQ6: sardines | BR6: grilled steak | BT6: 1 | BU6: 2 | BV6: 1 | BW6: 2 | BX6: 1 | BZ6: 0 | CA6: 0 | CB6: 0 | CD6: 0 | CF6: 0
A7: 1 | B7: cottage cheese w honey | C7: cottage cheese, honey | D7: 2 | E7: 1 | F7: 0.04166666667 | G7: 0.2083333333 | H7: 0.25 | I7: 0.01975978854 | K7: bagel w smoked salmon | L7: bagel, smoked salmon, cream cheese, onion | N7: banana | O7: banana | P7: 1 | Q7: 1 | R7: 0.01851851852 | S7: 0.09259259259 | T7: 0.1111111111 | U7: 0.07183024182 | W7: Babybel cheese | X7: Babybel cheeses | Z7: black bean soup | AA7: canned beans, onion, garlic, chicken broth, chili powder | AB7: 40 | AC7: 1 | AD7: 0.03125 | AE7: 0.15625 | AF7: 0.1875 | AG7: 0.331164486 | AI7: chicken noodle soup | AJ7: chicken noodle soup | AL7: chicken breast w roasted tomatoes, goat cheese | AM7: chicken breast, can of roasted tomatoes, goat cheese | AN7: 25 | AO7: 1 | AP7: 0.01886792453 | AQ7: 0.09433962264 | AR7: 0.1132075472 | AS7: 0.5888167683 | AU7: mac n cheese w spicy queso | AV7: macaroni, cheese, milk, butter, can of queso salsa | BC7: Friday | BD7: croissant | BE7: macadamia nuts | BF7: updated peanut butter sandwich | BG7: sardines | BH7: lasagna w beef | BN7: croissant | BO7: macadamia nuts | BP7: updated peanut butter sandwich | BQ7: sardines | BR7: lasagna w beef | BT7: 1 | BU7: 1 | BV7: 1 | BW7: 2 | BX7: 1 | BZ7: 0 | CA7: 0 | CB7: 0 | CD7: 0 | CF7: 0
A8: 1 | B8: cream of wheat | C8: cream of wheat | D8: 5 | E8: 1 | F8: 0.04166666667 | G8: 0.25 | H8: =G8+F8 -> 0.2916666667 | I8: 0.9168855698 | K8: yogurt | L8: yogurt | N8: bread and olive oil | O8: italian/french bread, olive oil, garlic, butter | P8: 3 | Q8: 1 | R8: 0.01851851852 | S8: 0.1111111111 | T8: 0.1296296296 | U8: 0.02404964164 | W8: ants on a log | X8: celery, peanut butter, raisins | Z8: blueberry walnut salad | AA8: blueberries, walnuts, romaine, dressing, goat cheese | AB8: 10 | AC8: 1 | AD8: 0.03125 | AE8: =AF7 -> 0.1875 | AF8: =AE8+AD8 -> 0.21875 | AG8: 0.5706170483 | AI8: hamburger | AJ8: hamburger, buns, ketchup, mustard | AL8: chicken quesadilla | AM8: chicken, tortilla, cheese, cream cheese | AN8: 45 | AO8: 1 | AP8: 0.01886792453 | AQ8: 0.1132075472 | AR8: 0.1320754717 | AS8: 0.8933841469 | AU8: stuffed shells | AV8: large pasta shells, ricotta cheese, additional cheese, tomato sauce | BC8: Saturday | BD8: bagel w smoked salmon | BE8: Babybel cheese | BF8: chicken noodle soup | BG8: Wheat Thins | BH8: mac n cheese w spicy queso | BN8: bagel w smoked salmon | BO8: Babybel cheese | BP8: chicken noodle soup | BQ8: Wheat Thins | BR8: mac n cheese w spicy queso | BT8: 2 | BU8: 1 | BV8: 1 | BW8: 1 | BX8: 1 | BZ8: 0 | CA8: 0 | CB8: 0 | CD8: 0 | CF8: 0
A9: 1 | B9: croissant | C9: croissant, butter | D9: 2 | E9: 1 | F9: 0.04166666667 | G9: 0.2916666667 | H9: 0.3333333333 | I9: 0.3433143671 | K9: english muffin | L9: english muffin, butter, jam | N9: bruschetta | O9: italian/french bread, diced tomato, olive oil | P9: 1 | Q9: 1 | R9: 0.01851851852 | S9: 0.1296296296 | T9: =S9+R9 -> 0.1481481481 | U9: 0.309228434 | W9: cottage cheese | X9: cottage cheese | Z9: broccoli cheddar soup | AA9: cheddar cheese, broccoli, butter, milk, chicken broth, onion | AB9: 45 | AC9: 1 | AD9: 0.03125 | AE9: 0.21875 | AF9: 0.25 | AG9: 0.1608345876 | AI9: black bean soup | AJ9: canned beans, onion, garlic, chicken broth, chili powder | AL9: chicken w apple butter, salad | AM9: chicken tenderloin, apple butter, lettuce/spinach | AN9: 70 | AO9: 1 | AP9: 0.01886792453 | AQ9: 0.1320754717 | AR9: 0.1509433962 | AS9: 0.4078311563 | AU9: grilled steak w mashed potatoes | AV9: steak, mashed potato | BC9: Sunday | BD9: yogurt | BE9: ants on a log | BF9: hamburger | BG9: celery w peanut butter | BH9: stuffed shells | BN9: yogurt | BO9: ants on a log | BP9: hamburger | BQ9: celery w peanut butter | BR9: stuffed shells | BT9: 2 | BU9: 1 | BV9: 1 | BW9: 1 | BX9: 1 | BZ9: 0 | CA9: 0 | CB9: 0 | CD9: 0 | CF9: 0
A10: 1 | B10: english muffin | C10: english muffin, butter, jam | D10: 3 | E10: 1 | F10: 0.04166666667 | G10: 0.3333333333 | H10: 0.375 | I10: 0.1889413986 | K10: cinnamon raisin bread | L10: bread, raisins, cinnamon, apple butter | N10: carrots w ranch | O10: carrots, ranch dressing | P10: 2 | Q10: 1 | R10: 0.01851851852 | S10: 0.1481481481 | T10: 0.1666666667 | U10: 0.7248158448 | W10: popcorn | X10: popcorn, butter, salt | Z10: caesar salad | AA10: salad, dressing, croutons | AB10: 10 | AC10: 1 | AD10: 0.03125 | AE10: 0.25 | AF10: 0.28125 | AG10: 0.09135156278 | AI10: baked potato | AJ10: potato, cheese, sour cream, chives, bacon | AL10: chicken w apple butter, white rice | AM10: chicken tenderloin, apple butter, rice | AN10: 70 | AO10: 1 | AP10: 0.01886792453 | AQ10: 0.1509433962 | AR10: 0.1698113208 | AS10: 0.7757540872 | AU10: rotissere chicken, from grocery store | AV10: rotissere chicken | BN10: =BD12 -> english muffin | BO10: =BE12 -> cottage cheese | BP10: black bean soup | BQ10: bag of chips | BR10: =BH12 -> grilled steak w mashed potatoes | BT10: 1 | BU10: 2 | BV10: 1 | BW10: 1 | BX10: 1 | BZ10: 0 | CA10: 0 | CB10: 0 | CD10: 0 | CF10: 0
A11: 1 | B11: french toast | C11: toast, eggs, cinnamon | D11: 10 | E11: 1 | F11: 0.04166666667 | G11: 0.375 | H11: 0.4166666667 | I11: 0.1101902557 | K11: Cheerios | L11: Cheerios, milk | N11: cashews | O11: cashews | P11: 1 | Q11: 1 | R11: 0.01851851852 | S11: 0.1666666667 | T11: 0.1851851852 | U11: =RAND() -> 0.3228935318 | W11: crackers w tuna | X11: crackers, can of tunafish | Z11: chicken avocado sandwich | AA11: chicken breast, avocado, mayonnaise, lettuce, bread, | AB11: 10 | AC11: 1 | AD11: 0.03125 | AE11: 0.28125 | AF11: 0.3125 | AG11: 0.6816564637 | AI11: PBJ w banana tortilla | AJ11: tortilla, banana, peanut butter, jelly | AL11: chicken w balsamic orzo w cherry tomatoes | AM11: chicken tenderloin, orzo, cherry tomatoes | AN11: 35 | AO11: 1 | AP11: 0.01886792453 | AQ11: 0.1698113208 | AR11: 0.1886792453 | AS11: 0.8394874273 | AU11: speghetti carbonara | AV11: speghetti, bacon, butter, milk, tomato sauce | BC11: WEEK 2 | BD11: Breakfast | BE11: Snack 1 | BF11: Lunch | BG11: Snack 2 | BH11: Dinner | BN11: =BD13 -> cinnamon raisin bread | BO11: =BE13 -> popcorn | BP11: =BF13 -> baked potato | BQ11: peanuts | BR11: =BH13 -> rotissere chicken, from grocery store | BT11: 1 | BU11: 1 | BV11: 1 | BW11: 2 | BX11: 1 | BZ11: 0 | CA11: 0 | CB11: 0 | CD11: 0 | CF11: 0
A12: 1 | B12: fruit assortment | C12: strawberries, blueberries, banana, apple | D12: 5 | E12: 1 | F12: 0.04166666667 | G12: =H11 -> 0.4166666667 | H12: =G12+F12 -> 0.4583333333 | I12: 0.8643596448 | K12: smoked salmon and cheese | L12: smoked salmon, cheddar, havarti, swiss cheese | N12: celery w peanut butter | O12: celery, peanut butter | P12: 2 | Q12: 1 | R12: 0.01851851852 | S12: 0.1851851852 | T12: 0.2037037037 | U12: 0.04436375613 | W12: apple | X12: apple | Z12: chicken noodle soup | AA12: chicken noodle soup | AB12: 10 | AC12: 1 | AD12: 0.03125 | AE12: 0.3125 | AF12: 0.34375 | AG12: 0.03532640191 | AI12: bagel sandwich | AJ12: bagel, cream cheese, turkey | AL12: chicken w sundried tomatoes | AM12: chicken tenderloin, sundried tomatoes | AN12: 20 | AO12: 1 | AP12: 0.01886792453 | AQ12: 0.1886792453 | AR12: 0.2075471698 | AS12: 0.6751417443 | AU12: penne w chicken and creamy pesto | AV12: penne pasta, chicken tenderloin, pesto sauce | BC12: Monday | BD12: =K9 -> english muffin | BE12: =W9 -> cottage cheese | BF12: =AI9 -> black bean soup | BG12: =W23 -> bag of chips | BH12: =AU9 -> grilled steak w mashed potatoes | BN12: Cheerios | BO12: crackers w tuna | BP12: PBJ w banana tortilla | BQ12: pretzels | BR12: speghetti carbonara | BT12: 1 | BU12: 1 | BV12: 1 | BW12: 1 | BX12: 1 | BZ12: 0 | CA12: 0 | CB12: 0 | CD12: 0 | CF12: 0
A13: 1 | B13: fruit smoothie | C13: strawberries, blueberries, banana, milk | D13: 5 | E13: 1 | F13: 0.04166666667 | G13: 0.4583333333 | H13: 0.5 | I13: 0.9535258797 | K13: yogurt | L13: yogurt | N13: cherry tomatoes | O13: cherry tomatoes | P13: 1 | Q13: 1 | R13: 0.01851851852 | S13: 0.2037037037 | T13: 0.2222222222 | U13: 0.8512845241 | W13: sardines | X13: can of sardines | Z13: club sandwich | AA13: bread, bacon, mayonnaise, lettuce, turkey slices, tomato | AB13: 10 | AC13: 1 | AD13: 0.03125 | AE13: 0.34375 | AF13: 0.375 | AG13: 0.3085899403 | AI13: chicken avocado sandwich | AJ13: chicken breast, avocado, mayonnaise, lettuce, bread, | AL13: chuleta w rice and beans | AM13: pork chop, rice, beans | AN13: 85 | AO13: 1 | AP13: 0.01886792453 | AQ13: 0.2075471698 | AR13: 0.2264150943 | AS13: 0.5593192772 | AU13: honey BBQ chicken tenderloin, w baked parmesan potato | AV13: chicken tenderloin, potato, bbq sauce, parmesan cheese | BC13: Tuesday | BD13: =K10 -> cinnamon raisin bread | BE13: =W10 -> popcorn | BF13: =AI10 -> baked potato | BG13: =W24 -> peanuts | BH13: =AU10 -> rotissere chicken, from grocery store | BN13: smoked salmon and cheese | BO13: apple | BP13: bagel sandwich | BQ13: graham crackers | BR13: penne w chicken and creamy pesto | BT13: 1 | BU13: 1 | BV13: 1 | BW13: 1 | BX13: 1 | BZ13: 0 | CA13: 0 | CB13: 0 | CD13: 0 | CF13: 0
A14: 1 | B14: gerber baby rice cereal | C14: gerber baby rice cereal | D14: 5 | E14: 1 | F14: 0.04166666667 | G14: 0.5 | H14: 0.5416666667 | I14: 0.0004897557757 | K14: bagel w smoked salmon | L14: bagel, smoked salmon, cream cheese, onion | N14: chips w hummus | O14: chips, hummus | P14: 2 | Q14: 1 | R14: 0.01851851852 | S14: 0.2222222222 | T14: 0.2407407407 | U14: 0.6158035248 | W14: olives | X14: green and black olives | Z14: cobb salad | AA14: lettuce, spinacy, hardboiled eggs, ham, cheese, dressing | AB14: 10 | AC14: 1 | AD14: 0.03125 | AE14: 0.375 | AF14: 0.40625 | AG14: 0.3666444894 | AI14: club sandwich | AJ14: bread, bacon, mayonnaise, lettuce, turkey slices, tomato | AL14: Dejourno pizza | AM14: Dejourno pizza | AN14: 25 | AO14: 1 | AP14: 0.01886792453 | AQ14: 0.2264150943 | AR14: 0.2452830189 | AS14: 0.2626687967 | AU14: fried pork chop, plantains | AV14: pork chop, plantains | BC14: Wednesday | BD14: Cheerios | BE14: crackers w tuna | BF14: PBJ w banana tortilla | BG14: pretzels | BH14: speghetti carbonara | BN14: yogurt | BO14: sardines | BP14: chicken avocado sandwich | BQ14: kiwi | BR14: honey BBQ chicken tenderloin, w baked parmesan potato | BT14: 2 | BU14: 2 | BV14: 3 | BW14: 1 | BX14: 1 | BZ14: 0 | CA14: 0 | CB14: 0 | CD14: 0 | CF14: 0
A15: 1 | B15: ham and egg breakfast taco | C15: tortilla, ham, egg | D15: 8 | E15: 1 | F15: 0.04166666667 | G15: 0.5416666667 | H15: 0.5833333333 | I15: 0.4984732442 | K15: fruit smoothie | L15: strawberries, blueberries, banana, milk | N15: chips w salsa | O15: chips, salsa | P15: 2 | Q15: 1 | R15: 0.01851851852 | S15: 0.2407407407 | T15: 0.2592592593 | U15: 0.9921649357 | W15: yogurt | X15: yogurt | Z15: cucumber sandwich | AA15: bread, cucumber, cream cheese | AB15: 10 | AC15: 1 | AD15: 0.03125 | AE15: 0.40625 | AF15: 0.4375 | AG15: 0.1336011908 | AI15: beef nachos | AJ15: tortilla chips, ground beef, cheese, salsa | AL15: fried pork chop, plantains | AM15: pork chop, plantains | AN15: 35 | AO15: 1 | AP15: 0.01886792453 | AQ15: 0.2452830189 | AR15: 0.2641509434 | AS15: 0.4210031724 | AU15: grilled steaks, w corn | AV15: steak, corn on the cob, butter | BC15: Thursday | BD15: smoked salmon and cheese | BE15: apple | BF15: bagel sandwich | BG15: graham crackers | BH15: penne w chicken and creamy pesto | BN15: bagel w smoked salmon | BO15: olives | BP15: club sandwich | BQ15: peanuts | BR15: fried pork chop, plantains | BT15: 2 | BU15: 1 | BV15: 1 | BW15: 2 | BX15: 1 | BZ15: 0 | CA15: 0 | CB15: 0 | CD15: 0 | CF15: 0
A16: 1 | B16: hardboiled eggs | C16: eggs | D16: 25 | E16: 1 | F16: 0.04166666667 | G16: 0.5833333333 | H16: 0.625 | N16: cielito lindo | O16: tortilla chips, cream cheese, sour cream, lattuce, salsa, ham slices, shredded cheese | P16: 15 | Q16: 1 | R16: 0.01851851852 | S16: 0.2592592593 | T16: 0.2777777778 | U16: =RAND() -> 0.6474657627 | W16: peanut butter and jelly sandwich | X16: bread, peanut butter, jelly | Z16: egg drop soup | AA16: chicken broth, egg | AB16: 10 | AC16: 1 | AD16: 0.03125 | AE16: 0.4375 | AF16: 0.46875 | AL16: fried salmon | AM16: salmon, oil | AN16: 25 | AO16: 1 | AP16: 0.01886792453 | AQ16: 0.2641509434 | AR16: 0.2830188679 | BC16: Friday | BD16: yogurt | BE16: sardines | BF16: chicken avocado sandwich | BG16: kiwi | BH16: honey BBQ chicken tenderloin, w baked parmesan potato | BN16: fruit smoothie | BO16: yogurt | BP16: beef nachos | BQ16: chips w salsa | BR16: grilled steaks, w corn | BT16: 2 | BU16: 1 | BV16: 1 | BW16: 1 | BX16: 1 | BZ16: 0 | CA16: 0 | CB16: 0 | CD16: 0 | CF16: 0
A17: 1 | B17: hash browns | C17: hash browns, salt/pepper | D17: 15 | E17: 1 | F17: 0.04166666667 | G17: 0.625 | H17: 0.6666666667 | N17: club crackers | O17: club crackers, cheese | P17: 3 | Q17: 1 | R17: 0.01851851852 | S17: 0.2777777778 | T17: 0.2962962963 | U17: 0.7718116453 | W17: prunes | X17: prunes | Z17: grilled cheese | AA17: bread, cheddar cheese, butter | AB17: 10 | AC17: 1 | AD17: 0.03125 | AE17: 0.46875 | AF17: 0.5 | AL17: fried talapia/cod | AM17: tilapia, oil | AN17: 25 | AO17: 1 | AP17: 0.01886792453 | AQ17: 0.2830188679 | AR17: 0.3018867925 | BC17: Saturday | BD17: bagel w smoked salmon | BE17: olives | BF17: club sandwich | BG17: peanuts | BH17: fried pork chop, plantains
A18: 1 | B18: pancakes | C18: pancake batter, syrup/honey | D18: 10 | E18: 1 | F18: 0.04166666667 | G18: 0.6666666667 | H18: 0.7083333333 | N18: cottage cheese | O18: cottage cheese | P18: 1 | Q18: 1 | R18: 0.01851851852 | S18: 0.2962962963 | T18: 0.3148148148 | U18: 0.3802870906 | W18: Fig Newtons | X18: Fig Newtons | Z18: grilled portabello w cheese | AA18: portabello mushroom, cheddar cheese | AB18: 10 | AC18: 1 | AD18: 0.03125 | AE18: 0.5 | AF18: 0.53125 | AL18: game hens with apple salad | AM18: game hen, marinade (italian salad dressing), spinach, apples | AN18: 90 | AO18: 1 | AP18: 0.01886792453 | AQ18: 0.3018867925 | AR18: 0.320754717 | BC18: Sunday | BD18: fruit smoothie | BE18: yogurt | BF18: beef nachos | BG18: chips w salsa | BH18: grilled steaks, w corn | BZ18: =SUM(BZ4:BZ16) -> 0 | CA18: =SUM(CA4:CA16) -> 0 | CB18: 0 | CD18: =SUM(CD3:CD16) -> 0 | CF18: =SUM(CF3:CF16) -> 0
A19: 1 | B19: Pop Tart | C19: Pop Tart | D19: 3 | E19: 1 | F19: 0.04166666667 | G19: 0.7083333333 | H19: 0.75 | N19: crackers w tuna | O19: crackers, can of tunafish | P19: 2 | Q19: 1 | R19: 0.01851851852 | S19: 0.3148148148 | T19: 0.3333333333 | U19: 0.8423045122 | W19: sardines | X19: can of sardines | Z19: ham and cheese sandwich | AA19: bread, ham slices, cheese, mayonnaise | AB19: 10 | AC19: 1 | AD19: 0.03125 | AE19: 0.53125 | AF19: 0.5625 | AL19: game hens with mashed potatoes | AM19: game hen, marinade (italian salad dressing), mashed potatos | AN19: 75 | AO19: 1 | AP19: 0.01886792453 | AQ19: 0.320754717 | AR19: 0.3396226415
A20: 1 | B20: Raisin Bran | C20: Raisin Bran, milk | D20: 3 | E20: 1 | F20: 0.04166666667 | G20: 0.75 | H20: 0.7916666667 | N20: cranberries | O20: cranberries | P20: 1 | Q20: 1 | R20: 0.01851851852 | S20: 0.3333333333 | T20: 0.3518518519 | U20: 0.8455861403 | W20: sardines | X20: can of sardines | Z20: hamburger | AA20: hamburger, buns, ketchup, mustard | AB20: 10 | AC20: 1 | AD20: 0.03125 | AE20: 0.5625 | AF20: 0.59375 | AL20: garlic pasta and grilled chicken | AM20: penne pasta, garlic tomato sauce, chicken tenderloin | AN20: 75 | AO20: 1 | AP20: 0.01886792453 | AQ20: 0.3396226415 | AR20: 0.358490566 | BJ20: Press CTRL M to simulate
A21: 1 | B21: scrambled eggs | C21: eggs, cheese, salt/pepper | D21: 8 | E21: 1 | F21: 0.04166666667 | G21: 0.7916666667 | H21: 0.8333333333 | N21: dates | O21: dates | P21: 1 | Q21: 1 | R21: 0.01851851852 | S21: =T20 -> 0.3518518519 | T21: =S21+R21 -> 0.3703703704 | U21: 0.9708298446 | W21: Wheat Thins | X21: Wheat Thins | Z21: hot dog | AA21: hot dog, buns, ketchup | AB21: 10 | AC21: 1 | AD21: 0.03125 | AE21: 0.59375 | AF21: 0.625 | AL21: grilled chicken kabobs | AM21: chicken breast, green peppers, onion | AN21: 20 | AO21: 1 | AP21: 0.01886792453 | AQ21: 0.358490566 | AR21: 0.3773584906 | BE21: Refresh list (F9) if: | BF21: X | BG21: Count | BH21: Refresh Indicator | BJ21: Iterations | BK21: 100
A22: 1 | B22: smoked salmon and cheese | C22: smoked salmon, cheddar, havarti, swiss cheese | D22: 3 | E22: 1 | F22: 0.04166666667 | G22: 0.8333333333 | H22: 0.875 | N22: Fig Newtons | O22: Fig Newtons | P22: 1 | Q22: 1 | R22: 0.01851851852 | S22: 0.3703703704 | T22: 0.3888888889 | U22: 0.1979629075 | W22: celery w peanut butter | X22: celery, peanut butter | Z22: lettuce wrap | AA22: lettuce, turkey slices, shrimp, ground beef | AB22: 15 | AC22: 1 | AD22: 0.03125 | AE22: 0.625 | AF22: 0.65625 | AL22: grilled steak | AM22: steak, butter | AN22: 15 | AO22: 1 | AP22: 0.01886792453 | AQ22: 0.3773584906 | AR22: 0.3962264151 | BE22: Breakfast appears more than X times in 2 weeks | BF22: 3 | BG22: =MAX(BT3:BT16) -> 2 | BH22: =IF(BG22>BF22,"REFRESH","") ->  | BJ22: Current Iteration | BK22: 100
A23: 1 | B23: waffles w berries | C23: waffles, blueberries, honey, butter | D23: 5 | E23: 1 | F23: 0.04166666667 | G23: 0.875 | H23: 0.9166666667 | N23: fruit roll up | O23: fruit roll up | P23: 1 | Q23: 1 | R23: 0.01851851852 | S23: 0.3888888889 | T23: 0.4074074074 | U23: 0.08501684864 | W23: bag of chips | X23: bag of chips | Z23: PBJ w banana tortilla | AA23: tortilla, banana, peanut butter, jelly | AB23: 5 | AC23: 1 | AD23: 0.03125 | AE23: 0.65625 | AF23: 0.6875 | AL23: grilled steak w mashed potatoes | AM23: steak, mashed potato | AN23: 45 | AO23: 1 | AP23: 0.01886792453 | AQ23: 0.3962264151 | AR23: 0.4150943396 | BE23: Snack 1 appears more than X times in 2 weeks | BF23: 4 | BG23: =MAX(BU3:BU16) -> 2 | BH23: =IF(BG23>BF23,"REFRESH","") ->  | BJ23: Indicator to refresh | BK23: =IF(OR(BH22="REFRESH",BH23="REFRESH",BH24="REFRESH",BH25="REFRESH",BH26="REFRESH",BH27="REFRESH",BH28="REFRESH",BH29="REFRESH",BH30="REFRESH",BH31="REFRESH",BH32="REFRESH",BH33="REFRESH"),1,0) -> 1
A24: 0 | B24: yogurt | C24: yogurt | D24: 1 | E24: 1 | F24: 0.04166666667 | G24: 0.9166666667 | H24: 0.9583333333 | N24: graham crackers | O24: graham crackers, peanut butter | P24: 3 | Q24: 1 | R24: 0.01851851852 | S24: 0.4074074074 | T24: 0.4259259259 | U24: 0.6570554862 | W24: peanuts | X24: peanuts | Z24: pita pocket | AA24: pita bread, ham slices, turkey slices, cheese, lettuce | AB24: 10 | AC24: 1 | AD24: 0.03125 | AE24: 0.6875 | AF24: 0.71875 | AL24: grilled steaks, w corn | AM24: steak, corn on the cob, butter | AN24: 45 | AO24: 1 | AP24: 0.01886792453 | AQ24: 0.4150943396 | AR24: 0.4339622642 | BE24: Lunch appears more than X times in 2 weeks | BF24: 3 | BG24: =MAX(BV3:BV16) -> 3 | BH24: =IF(BG24>BF24,"REFRESH","") ->  | BJ24: % time good selections | BK24: =1-BK25 -> 0.11
A25: 1 | B25: yogurt w granola | C25: yogurt, granola | D25: 2 | E25: 1 | F25: 0.04166666667 | G25: 0.9583333333 | H25: 1 | N25: granola | O25: granola | P25: 1 | Q25: 1 | R25: 0.01851851852 | S25: 0.4259259259 | T25: 0.4444444444 | U25: =RAND() -> 0.7565807768 | W25: pretzels | X25: pretzels | Z25: potato salad w bacon | AA25: potato, bacon, onion | AB25: 20 | AC25: 1 | AD25: 0.03125 | AE25: 0.71875 | AF25: 0.75 | AL25: grilled steaks, w roasted veggies | AM25: steak, green/red bell peppers, onion | AN25: 50 | AO25: 1 | AP25: 0.01886792453 | AQ25: 0.4339622642 | AR25: 0.4528301887 | BE25: Snack 2 appears more than X times in 2 weeks | BF25: 4 | BG25: =MAX(BW3:BW16) -> 2 | BH25: =IF(BG25>BF25,"REFRESH","") ->  | BJ25: % time need to refresh list | BK25: =AVERAGE(A:A) -> 0.89
A26: 1 | N26: granola bar | O26: granola bar | P26: 1 | Q26: 1 | R26: 0.01851851852 | S26: 0.4444444444 | T26: 0.462962963 | U26: 0.421434272 | W26: graham crackers | X26: graham crackers, peanut butter | Z26: potstickers and rice | AA26: potstickers, rice | AB26: 20 | AC26: 1 | AD26: 0.03125 | AE26: 0.75 | AF26: 0.78125 | AL26: ground beef tacos | AM26: ground beef, tortilla, cheese, cream cheese | AN26: 40 | AO26: 1 | AP26: 0.01886792453 | AQ26: 0.4528301887 | AR26: 0.4716981132 | BE26: Dinner appears more than X times in 2 weeks | BF26: 3 | BG26: =MAX(BX3:BX16) -> 1 | BH26: =IF(BG26>BF26,"REFRESH","") ->  | BJ26: 1 good every X refreshes | BK26: =1/BK24 -> 9.090909091
A27: 1 | N27: grapes | O27: grapes | P27: 1 | Q27: 1 | R27: 0.01851851852 | S27: 0.462962963 | T27: 0.4814814815 | U27: 0.5291239356 | W27: kiwi | X27: kiwi | Z27: ramen noodles | AA27: top ramen | AB27: 10 | AC27: 1 | AD27: 0.03125 | AE27: 0.78125 | AF27: 0.8125 | AL27: ground turkey tacos | AM27: ground turkey, tortilla, cheese, cream cheese | AN27: 40 | AO27: 1 | AP27: 0.01886792453 | AQ27: 0.4716981132 | AR27: 0.4905660377 | BE27: Same Breakfast 2 or more days in a row | BH27: =IF(BZ18>0,"REFRESH","") -> 
A28: 1 | N28: hazelnuts | O28: hazelnuts | P28: 1 | Q28: 1 | R28: 0.01851851852 | S28: 0.4814814815 | T28: 0.5 | U28: 0.6489141354 | W28: peanuts | X28: peanuts | Z28: sloppy joes | AA28: ground beef, onion, celery, hamburger buns | AB28: 35 | AC28: 1 | AD28: 0.03125 | AE28: 0.8125 | AF28: 0.84375 | AL28: ham and mashed potatoes | AM28: ham, mashed potatoes | AN28: 15 | AO28: 1 | AP28: 0.01886792453 | AQ28: 0.4905660377 | AR28: 0.5094339623 | BE28: Same Lunch 2 or more days in a row | BH28: =IF(CA18>0,"REFRESH","") -> 
A29: 1 | N29: honey sticks | O29: honey sticks | P29: 1 | Q29: 1 | R29: 0.01851851852 | S29: 0.5 | T29: 0.5185185185 | U29: 0.2452674361 | W29: chips w salsa | X29: chips, salsa | Z29: spicy cucumber salad | AA29: cucumber, chili oil | AB29: 10 | AC29: 1 | AD29: 0.03125 | AE29: 0.84375 | AF29: 0.875 | AL29: honey BBQ chicken tenderloin, french fries | AM29: chicken tenderloin, potato, bbq sauce | AN29: 45 | AO29: 1 | AP29: 0.01886792453 | AQ29: 0.5094339623 | AR29: 0.5283018868 | BE29: Same Dinner 2 or more days in a row | BH29: =IF(CB18>0,"REFRESH","") -> 
A30: 0 | N30: kiwi | O30: kiwi | P30: 1 | Q30: 1 | R30: 0.01851851852 | S30: 0.5185185185 | T30: 0.537037037 | Z30: tomato soup | AA30: tomato soup | AB30: 10 | AC30: 1 | AD30: 0.03125 | AE30: 0.875 | AF30: 0.90625 | AL30: honey BBQ chicken tenderloin, mashed potato | AM30: chicken tenderloin, mashed potato, bbq sauce | AN30: 30 | AO30: 1 | AP30: 0.01886792453 | AQ30: 0.5283018868 | AR30: 0.5471698113 | BE30: Snack 1 and Snack 2 are the same for any day | BH30: =IF(CD18>0,"REFRESH","") -> 
A31: 1 | N31: krab w dip | O31: imitation crap, coctail sauce | P31: 5 | Q31: 1 | R31: 0.01851851852 | S31: 0.537037037 | T31: 0.5555555556 | Z31: tortilla pizza | AA31: tortilla, tomato sauce, pepperoni, cheese | AB31: 10 | AC31: 1 | AD31: 0.03125 | AE31: 0.90625 | AF31: 0.9375 | AL31: honey BBQ chicken tenderloin, w baked parmesan potato | AM31: chicken tenderloin, potato, bbq sauce, parmesan cheese | AN31: 50 | AO31: 1 | AP31: 0.01886792453 | AQ31: 0.5471698113 | AR31: 0.5660377358 | BE31: French toast for Breakfast does not appear in 2 weeks | BH31: =IF(CF18=0,"REFRESH","") -> REFRESH
A32: 0 | N32: macadamia nuts | O32: macadamia nuts | P32: 1 | Q32: 1 | R32: 0.01851851852 | S32: 0.5555555556 | T32: 0.5740740741 | Z32: turkey chili | AA32: ground turkey, onion, canned tomatoes, garlic, paprika, cumin | AB32: 45 | AC32: 1 | AD32: 0.03125 | AE32: 0.9375 | AF32: 0.96875 | AL32: lasagna w beef | AM32: lasagna, ground beef, tomato sauce | AN32: 60 | AO32: 1 | AP32: 0.01886792453 | AQ32: 0.5660377358 | AR32: 0.5849056604 | BE32: eating out appears more than X times | BF32: 4 | BG32: =COUNTIF(BH3:BH18,AL35)+COUNTIF(BH3:BH18,AL54) -> 0 | BH32: =IF(BG32>BF32,"REFRESH","") -> 
A33: 1 | N33: mixed vegetables | O33: frozen mixed vegetables, salt, butter | P33: 5 | Q33: 1 | R33: 0.01851851852 | S33: 0.5740740741 | T33: 0.5925925926 | Z33: updated peanut butter sandwich | AA33: bread, peanut butter, applesauce | AB33: 5 | AC33: 1 | AD33: 0.03125 | AE33: 0.96875 | AF33: 1 | AL33: mac n cheese w spicy queso | AM33: macaroni, cheese, milk, butter, can of queso salsa | AN33: 25 | AO33: 1 | AP33: 0.01886792453 | AQ33: 0.5849056604 | AR33: 0.6037735849 | BE33: eating out appears less than X times | BF33: 1 | BG33: =BG32 -> 0 | BH33: =IF(BG33<BF33,"REFRESH","") -> REFRESH
A34: 1 | N34: nectarine | O34: nectarine | P34: 1 | Q34: 1 | R34: 0.01851851852 | S34: 0.5925925926 | T34: 0.6111111111 | AL34: macaroni and cheese | AM34: macaroni, cheese, milk, butter | AN34: 10 | AO34: 1 | AP34: 0.01886792453 | AQ34: 0.6037735849 | AR34: 0.6226415094
A35: 0 | N35: olives | O35: green and black olives | P35: 2 | Q35: 1 | R35: 0.01851851852 | S35: 0.6111111111 | T35: 0.6296296296 | AL35: Mexican restaurant | AM35: tacos, tortilla chips | AN35: 0 | AO35: 1 | AP35: 0.01886792453 | AQ35: 0.6226415094 | AR35: 0.641509434
A36: 1 | N36: peanut butter and jelly sandwich | O36: bread, peanut butter, jelly | P36: 3 | Q36: 1 | R36: 0.01851851852 | S36: 0.6296296296 | T36: 0.6481481481 | AL36: mozz tomato panini w greek salad | AM36: fresh mozz cheese, tomato, french bread, spinach, feta cheese | AN36: 30 | AO36: 1 | AP36: 0.01886792453 | AQ36: 0.641509434 | AR36: 0.6603773585
A37: 1 | N37: peanuts | O37: peanuts | P37: 1 | Q37: 1 | R37: 0.01851851852 | S37: 0.6481481481 | T37: 0.6666666667 | AL37: penne w chicken and creamy pesto | AM37: penne pasta, chicken tenderloin, pesto sauce | AN37: 40 | AO37: 1 | AP37: 0.01886792453 | AQ37: 0.6603773585 | AR37: 0.679245283 | AV37: Requirements
A38: 1 | N38: pear | O38: pear | P38: 1 | Q38: 1 | R38: 0.01851851852 | S38: 0.6666666667 | T38: 0.6851851852 | AL38: pierogis | AM38: pierogis, cheese, tomato sauce | AN38: 35 | AO38: 1 | AP38: 0.01886792453 | AQ38: 0.679245283 | AR38: 0.6981132075 | AV38: two week meal plan
A39: 1 | N39: pickles | O39: pickles | P39: 1 | Q39: 1 | R39: 0.01851851852 | S39: 0.6851851852 | T39: 0.7037037037 | AL39: pinchos on grill, rice | AM39: chicken or steak, bell peppers, rice | AN39: 20 | AO39: 1 | AP39: 0.01886792453 | AQ39: 0.6981132075 | AR39: 0.7169811321 | AV39: daily: breakfasts, lunches, 2 snacks, 2 dinners per week
A40: 1 | N40: plum | O40: plum | P40: 1 | Q40: 1 | R40: 0.01851851852 | S40: 0.7037037037 | T40: 0.7222222222 | AL40: pinchos on grill, roasted vegatables | AM40: chicken or steak, bell peppers, onion | AN40: 40 | AO40: 1 | AP40: 0.01886792453 | AQ40: 0.7169811321 | AR40: 0.7358490566 | AV40: uses HelloFresh for 4 dinners per week already
A41: 1 | N41: popcorn | O41: popcorn, butter, salt | P41: 6 | Q41: 1 | R41: 0.01851851852 | S41: 0.7222222222 | T41: 0.7407407407 | AL41: pizza | AM41: Boboli, pepperoni, green peppers, olives, cheese | AN41: 25 | AO41: 1 | AP41: 0.01886792453 | AQ41: 0.7358490566 | AR41: 0.7547169811 | AV41: include food prep
A42: 1 | N42: pretzels | O42: pretzels | P42: 1 | Q42: 1 | R42: 0.01851851852 | S42: 0.7407407407 | T42: 0.7592592593 | AL42: ribs | AM42: ribs, bbq sauce/rub | AN42: 20 | AO42: 1 | AP42: 0.01886792453 | AQ42: 0.7547169811 | AR42: 0.7735849057 | AV42: include shopping list
A43: 0 | N43: prunes | O43: prunes | P43: 1 | Q43: 1 | R43: 0.01851851852 | S43: 0.7592592593 | T43: 0.7777777778 | AL43: rotissere chicken, from grocery store | AM43: rotissere chicken | AN43: 10 | AO43: 1 | AP43: 0.01886792453 | AQ43: 0.7735849057 | AR43: 0.7924528302
A44: 1 | N44: pumpkin seeds | O44: pumpkin seeds | P44: 1 | Q44: 1 | R44: 0.01851851852 | S44: 0.7777777778 | T44: 0.7962962963 | AL44: smoked gouda quesadilla | AM44: tortilla, gouda cheese, additional cheese | AN44: 30 | AO44: 1 | AP44: 0.01886792453 | AQ44: 0.7924528302 | AR44: 0.8113207547
A45: 1 | N45: raisins | O45: raisins | P45: 1 | Q45: 1 | R45: 0.01851851852 | S45: 0.7962962963 | T45: 0.8148148148 | AL45: sopa de salchichon | AM45: macaroni, spices, salami, tomato paste | AN45: 40 | AO45: 1 | AP45: 0.01886792453 | AQ45: 0.8113207547 | AR45: 0.8301886792
A46: 1 | N46: rice cakes | O46: rice cakes | P46: 1 | Q46: 1 | R46: 0.01851851852 | S46: 0.8148148148 | T46: 0.8333333333 | AL46: speghetti carbonara | AM46: speghetti, bacon, butter, milk, tomato sauce | AN46: 30 | AO46: 1 | AP46: 0.01886792453 | AQ46: 0.8301886792 | AR46: 0.8490566038
A47: 1 | N47: sardines | O47: can of sardines | P47: 2 | Q47: 1 | R47: 0.01851851852 | S47: 0.8333333333 | T47: 0.8518518519 | AL47: speghetti w meatballs | AM47: speghetti, meatballs, tomato sauce | AN47: 15 | AO47: 1 | AP47: 0.01886792453 | AQ47: 0.8490566038 | AR47: 0.8679245283
A48: 0 | N48: string cheese | O48: string cheese | P48: 1 | Q48: 1 | R48: 0.01851851852 | S48: 0.8518518519 | T48: 0.8703703704 | AL48: speghetti w salchichon | AM48: speghetti, tomato sauce, salami | AN48: 40 | AO48: 1 | AP48: 0.01886792453 | AQ48: 0.8679245283 | AR48: 0.8867924528
A49: 0 | N49: string cheese wrapped w ham | O49: string cheese, ham lunch meat | P49: 3 | Q49: 1 | R49: 0.01851851852 | S49: 0.8703703704 | T49: 0.8888888889 | AL49: stuffed shells | AM49: large pasta shells, ricotta cheese, additional cheese, tomato sauce | AN49: 60 | AO49: 1 | AP49: 0.01886792453 | AQ49: =AR48 -> 0.8867924528 | AR49: =AQ49+AP49 -> 0.9056603774
A50: 1 | N50: string cheese wrapped w turkey | O50: string cheese, turkey lunch meat | P50: 3 | Q50: 1 | R50: 0.01851851852 | S50: 0.8888888889 | T50: 0.9074074074 | AL50: tom ka ga | AM50: chicken tenderloin, coconut milk, lemongrass | AN50: 50 | AO50: 1 | AP50: 0.01886792453 | AQ50: 0.9056603774 | AR50: 0.9245283019
A51: 1 | N51: sunflower seeds | O51: sunflower seeds | P51: 1 | Q51: 1 | R51: 0.01851851852 | S51: 0.9074074074 | T51: 0.9259259259 | AL51: tomato tortellini soup | AM51: tortellini pasta, tomato soup | AN51: 30 | AO51: 1 | AP51: 0.01886792453 | AQ51: =AR50 -> 0.9245283019 | AR51: =AQ51+AP51 -> 0.9433962264
A52: 1 | N52: trail mix | O52: trail mix | P52: 1 | Q52: 1 | R52: 0.01851851852 | S52: 0.9259259259 | T52: 0.9444444444 | AL52: tomato with mozzerella, balsamic vineagar | AM52: tomato, fresh mozz cheese, balsamic vineagar, olive oil | AN52: 20 | AO52: 1 | AP52: 0.01886792453 | AQ52: =AR51 -> 0.9433962264 | AR52: =AQ52+AP52 -> 0.9622641509
A53: 1 | N53: walnuts | O53: walnuts | P53: 1 | Q53: 1 | R53: 0.01851851852 | S53: 0.9444444444 | T53: 0.962962963 | AL53: tortellini with pastachio pesto | AM53: tortellini pasta, pastachio, olive oil | AN53: 30 | AO53: 1 | AP53: 0.01886792453 | AQ53: 0.9622641509 | AR53: 0.9811320755
A54: 0 | N54: Wheat Thins | O54: Wheat Thins | P54: 1 | Q54: 1 | R54: 0.01851851852 | S54: 0.962962963 | T54: 0.9814814815 | AL54: Vietnamese restaurant | AM54: pho, rice, egg rolls | AN54: 0 | AO54: 1 | AP54: 0.01886792453 | AQ54: 0.9811320755 | AR54: 1
A55: 1 | N55: yogurt | O55: yogurt | P55: 1 | Q55: 1 | R55: 0.01851851852 | S55: 0.9814814815 | T55: 1
A56: 1
A57: 1
A58: 1
A59: 0
A60: 1
A61: 1
A62: 1
A63: 1
A64: 1
A65: 1
A66: 1
A67: 1
A68: 1
A69: 1
A70: 1
A71: 1
A72: 1
A73: 1
A74: 1
A75: 1
A76: 0
A77: 1
A78: 1
A79: 1
A80: 1
A81: 1
A82: 1
A83: 1
A84: 1
A85: 1
A86: 1
A87: 1
A88: 1
A89: 1
A90: 1
A91: 1
A92: 1
A93: 1
A94: 1
A95: 1
A96: 1
A97: 0
A98: 1
A99: 1
A100: 1

Sheet Sheet2
A1: 1
A2: 0
A3: 1
A4: 0
A5: 0
A6: 0
A7: 0
A8: 1
A9: 0
A10: 0
A11: 0
A12: 0
A13: 0
A14: 0
A15: 0
A16: 1
A17: 1
A18: 0
A19: 0
A20: 1
A21: 0
A22: 1
A23: 0
A24: 1
A25: 0
A26: 0
A27: 0
A28: 0
A29: 0
A30: 0
A31: 0
A32: 0
A33: 1
A34: 0
A35: 1
A36: 1
A37: 0
A38: 0
A39: 0
A40: 0
A41: 0
A42: 1
A43: 0
A44: 1
A45: 1
A46: 0
A47: 0
A48: 1
A49: 1
A50: 1
A51: 1
A52: 0
A53: 0
A54: 1
A55: 0
A56: 1
A57: 0
A58: 1
A59: 1
A60: 0
A61: 0
A62: 0
A63: 1
A64: 1
A65: 1
A66: 0
A67: 1
A68: 0
A69: 1
A70: 1
A71: 0
A72: 1
A73: 1
A74: 1
A75: 0
A76: 1
A77: 1
A78: 0
A79: 1
A80: 0
A81: 0
A82: 1
A83: 0
A84: 0
A85: 1
A86: 0
A87: 1
A88: 0
A89: 0
A90: 0
A91: 0
A92: 1
A93: 0
A94: 1
A95: 0
A96: 0
A97: 0
A98: 0
A99: 0
A100: 0
A101: 0
A102: 0
A103: 0
A104: 1
A105: 1
A106: 0
A107: 0
A108: 0
A109: 0
A110: 0
A111: 1
A112: 0
A113: 1
A114: 1
A115: 0
A116: 1
A117: 0
A118: 0
A119: 0
A120: 0
A121: 0
A122: 0
A123: 0
A124: 0
A125: 1
A126: 0
A127: 1
A128: 1
A129: 0
A130: 1
A131: 1
A132: 0
A133: 0
A134: 0
A135: 0
A136: 1
A137: 1
A138: 1
A139: 1
A140: 1
A141: 0
A142: 1
A143: 0
A144: 1
A145: 1
A146: 0
A147: 0
A148: 1
A149: 0
A150: 0
A151: 0
A152: 1
A153: 1
A154: 1
A155: 0
A156: 1
A157: 0
A158: 0
A159: 0
A160: 1
A161: 1
A162: 1
A163: 1
A164: 0
A165: 0
A166: 1
A167: 1
A168: 1
A169: 0
A170: 0
A171: 1
A172: 0
A173: 0
A174: 1
A175: 0
A176: 0
A177: 0
A178: 1
A179: 1
A180: 0
A181: 0
A182: 1
A183: 1
A184: 0
A185: 0
A186: 0
A187: 0
A188: 1
A189: 0
A190: 1
A191: 1
A192: 1
A193: 0
A194: 1
A195: 0
A196: 0
A197: 1
A198: 1
A199: 1
A200: 1
... 300 more rows
